Cogmind - Beta 13 @@@ ROGUE MODE // 2024.04.03 @ 00:05:18 Player: Ehseezed Result: Destroyed by H-61 Shepherd with Heavy Assault Cannon Performance ------------- Evolutions (2) 1000 Regions Visited (3) 600 Robots Destroyed (68) 340 Value Destroyed (1706) 1706 Prototype IDs (2) 40 Alien Tech Used (0) 0 Bonus (394) 394 TOTAL SCORE: 4080 Bonus ------- High Alert Combat Kills 394 Cogmind --------- Core Integrity 0/550 Matter 250/300 Energy 86/100 System Corruption 10% Temperature Cool (0) Movement Core (50) Location -8/Materials Parts ------- > --- POWER (2) -------- (None) > --- PROPULSION (4) --- VSS Leg > --- UTILITY (3) ------ (None) > --- WEAPON (2) ------- (None) > --- INVENTORY (5) ---- (None) Peak State ------------ > --- POWER ------------ Deuterium Engine Deuterium Engine > --- PROPULSION ------- Wheel Wheel Armored Wheel > --- UTILITY ---------- Hacking Suite Hacking Suite Hacking Suite > --- WEAPON ----------- Heavy Laser Heavy Laser > --- INVENTORY -------- Hacking Suite System Restoration Module Heavy Laser Heavy Laser [Rating: 28] Favorites ----------- Power Ion Engine Engine Ion Engine Propulsion Wheel Leg VSS Leg Wheel Wheel Utility Hacking Suite Storage Small Storage Unit Processor Targeting Computer Hackware Hacking Suite Weapon Improved Grenade Launcher Energy Gun Heavy Laser Energy Cannon Advanced Beam Cannon Ballistic Gun Assault Rifle Launcher Improved Grenade Launcher Special Melee Weapon Improved Datajack Build | -11 -10 -9 -8 ------- Run | Yrd Mat Mat Mat Slots Evolved 4 | . . 2 2 Power 1 | . . 1 . Propulsion 2 | . . 1 1 Utility 1 | . . . 1 Weapon . | . . . . Parts Attached 51 | 7 4 21 19 Power 7 | 1 . 4 2 Engine 7 | 1 . 4 2 Core . | . . . . Reactor . | . . . . Propulsion 12 | 2 . 7 3 Treads . | . . . . Leg 1 | . . . 1 Wheel 11 | 2 . 7 2 Hover . | . . . . Flight . | . . . . Utility 8 | 1 3 2 2 Device . | . . . . Storage 2 | 1 1 . . Processor 2 | . 2 . . Hackware 4 | . . 2 2 Protection . | . . . . Artifact . | . . . . Weapon 24 | 3 1 8 12 Energy Gun 14 | 2 . 2 10 Energy Cannon 1 | . . 1 . Ballistic Gun 2 | 1 . 1 . Ballistic Cannon . | . . . . Launcher 5 | . 1 4 . Special Weapon . | . . . . Impact Weapon . | . . . . Slashing Weapon . | . . . . Piercing Weapon . | . . . . Special Melee Weapon 2 | . . . 2 Unidentified Prototypes 2 | . . 2 . Parts Lost 28 | . . 9 19 Power 6 | . . 3 3 Propulsion 7 | . . 3 4 Utility 3 | . . . 3 Weapon 12 | . . 3 9 Highest Loss Streak 12 | . . 2 12 To Critical Strikes . | . . . . Average Slot Usage (%) 85 | . 95 90 53 Engine 12 | . 14 14 6 Wheel 28 | . 28 32 15 Storage 8 | . 14 7 . Processor 6 | . 8 7 . Hackware 7 | . . 7 21 Energy Gun 1 | . . . 8 Energy Cannon 4 | . . 8 . Ballistic Gun 4 | . 14 1 . Launcher 10 | . 13 11 1 Naked Turns 30 | . . . 30 Heaviest Build 26 | 11 18 25 26 Greatest Support 42 | 32 32 42 38 Greatest Overweight (x) 1 | . . . 1 Average Overweight (x) . | . . . . Largest Inventory Capacity 8 | 8 8 8 5 Average Capacity 6 | 6 8 6 5 Most Carried 8 | 6 8 8 5 Average Carried 5 | 2 7 5 2 Final Capacity 8 | 8 8 5 5 Final Carried 7 | 6 7 4 . Class Distribution -------------------- 66% | Mutant 33% | Hacker-Mutant Dominant Class ---------------- Mutant | -10/Materials Mutant | -9/Materials Hacker-Mutant | -8/Materials Resources | -11 -10 -9 -8 ----------- Run | Yrd Mat Mat Mat Matter Collected 1270 | 246 149 709 166 Remotely . | . . . . Salvage Created 1629 | . 269 1112 248 Parts 117 | . 26 83 8 Haulers Intercepted 1 | . . 1 . Recyclers Shooed . | . . . . Parts Field Recycled . | . . . . Retrieved Matter . | . . . . Parts Self-Destructed . | . . . . Prevented . | . . . . Kills | -11 -10 -9 -8 ------- Run | Yrd Mat Mat Mat Combat Hostiles Destroyed 50 | . 10 35 5 Guns 7 | . 1 1 5 Cannons 11 | . . 11 . AOE 32 | . 9 23 . Classes Destroyed 9 | . 6 3 . Builder 6 | . 1 5 . Hauler 1 | . . 1 . Recycler 3 | . 1 2 . Operator 1 | . 1 . . Watcher 7 | . 3 4 . Swarmer 17 | . 6 11 . Grunt 19 | . 4 14 1 Duelist 3 | . . 2 1 Sentry 11 | . . 8 3 Best Kill Streak 10 | . 6 10 2 Combat Bots Only 7 | . 5 7 2 Max Kills in Single Turn 4 | . 3 4 1 Gunslinging . | . . . . Exploded 4 | . 3 4 . Melee . | . . . . Uniques/NPCs Destroyed . | . . . . Combat | -11 -10 -9 -8 -------- Run | Yrd Mat Mat Mat Hostile Shots Fired 232 | . 26 114 92 Missed 82 | . 11 44 27 Damage Taken 2715 | . 216 998 1501 Core 838 | . 47 198 593 Absorbed by Shields . | . . . . Core Remaining (%) 77 | 100 81 50 . Volleys Fired 104 | . 17 55 32 Largest 2 | . 2 2 2 Hottest 138 | . 50 104 138 Shots Fired 164 | . 32 93 39 Gun 58 | . 17 4 37 Cannon 49 | . . 49 . Launcher 57 | . 15 40 2 Special . | . . . . Kinetic 19 | . 17 2 . Thermal 80 | . . 51 29 Explosive 57 | . 15 40 2 Electromagnetic 8 | . . . 8 Robot Hit Streak 17 | . 10 17 12 Robot Miss Streak 6 | . 3 6 6 Penetration Max . | . . . . Secondary Targets . | . . . . Shots Hit Robots 87 | . 12 44 31 Core Hits 103 | . 25 66 12 Critical Kills . | . . . . Critical Parts Destroyed . | . . . . Critical Strikes 1 | . . . 1 Burn 1 | . . . 1 Melee Attacks 1 | . . . 1 Impact . | . . . . Slashing . | . . . . Piercing . | . . . . Sneak Attacks . | . . . . Combat Hostiles . | . . . . Follow-up Attacks . | . . . . Damage Inflicted 4680 | . 1011 2982 687 Guns 659 | . 84 34 541 Cannons 572 | . . 572 . Explosions 3443 | . 927 2376 140 Melee . | . . . . Ramming 6 | . . . 6 Kinetic 96 | . 84 12 . Thermal 1097 | . . 594 503 Explosive 3360 | . 927 2376 57 Electromagnetic 121 | . . . 121 Impact . | . . . . Slashing . | . . . . Piercing . | . . . . Highest Corruption 10 | . . . 10 Average Corruption 4 | . . . 4 Corruption Purged . | . . . . Corruption Blocked . | . . . . Effects 4 | . . . 4 Message Errors 2 | . . . 2 Matter Fused 1 | . . . 1 Parts Rejected 1 | . . . 1 Overload Shots . | . . . . Overflow Damage 109 | . 18 81 10 Projectiles . | . . . . Explosions 109 | . 18 81 10 Melee . | . . . . Knockbacks . | . . . . Impact . | . . . . Kinetic . | . . . . Secondary . | . . . . Self-Inflicted Damage 345 | . 87 172 86 Shots 11 | . 3 5 3 Rammed 2 | . . 1 1 Targets Rammed 2 | . . 1 1 Kicked . | . . . . Crushed . | . . . . Highest Temperature 360 | . 12 267 360 Average Temperature 96 | . 6 76 147 Received Heat Transfer 429 | . 9 186 234 Effects 3 | . . 1 2 Energy Bleed 3 | . . 1 2 Siege Activations . | . . . . Robots Corrupted . | . . . . Combat Hostiles . | . . . . Parts Fried . | . . . . Impact Corruptions . | . . . . Robots Melted . | . . . . Combat Hostiles . | . . . . Parts Melted 2 | . . 1 1 Heat Transferred 2074 | . . 1086 988 Parts Sabotaged . | . . . . Parts Stolen . | . . . . Parts Stripped . | . . . . Power Chain Reactions 1 | . . . 1 Alert | -11 -10 -9 -8 ------- Run | Yrd Mat Mat Mat Peak Influence 1103 | . 381 1103 536 Initial 446 | . . 76 446 Average 492 | . 191 681 506 Maximum Alert Level 4 | . 1 4 2 Low Security (%) 26 | 100 57 14 . Level 1 14 | . 42 4 . Level 2 29 | . . 22 100 Level 3 30 | . . 58 . Level 4 . | . . . . Level 5 . | . . . . High Security . | . . . . Max Security . | . . . . Squads Dispatched 7 | . . 5 2 Investigation 1 | . . 1 . Extermination . | . . . . Reinforcement 5 | . . 3 2 Assault 1 | . . 1 . Garrison . | . . . . Intercept . | . . . . Searches Triggered . | . . . . Construction Impeded 1 | . . 1 . Haulers Reinforced . | . . . . Active Scanning Responses . | . . . . Cargo Convoy Interrupts . | . . . . Stealth | -11 -10 -9 -8 --------- Run | Yrd Mat Mat Mat Distress Signals 6 | . 1 5 . Communications Jammed . | . . . . Distress Signals . | . . . . Times Spotted 79 | . 13 51 15 Peak Tracking Total 8 | . 3 8 4 Tactical Retreats 6 | . . 2 4 Traps | -11 -10 -9 -8 ------- Run | Yrd Mat Mat Mat Traps Triggered 2 | . . . 2 Indirectly . | . . . . Trap Hack Attempts . | . . . . Triggered . | . . . . Disarmed . | . . . . Reprogrammed . | . . . . Reused . | . . . . Traps Extracted . | . . . . Installed . | . . . . Triggered . | . . . . Machines | -11 -10 -9 -8 ---------- Run | Yrd Mat Mat Mat Machines Disabled 5 | . . 5 . Max in Single Turn 2 | . . 2 . Machines Repaired . | . . . . Machines Dismantled . | . . . . Machines Sabotaged . | . . . . Overloaded Fab Kills . | . . . . Hacking | -11 -10 -9 -8 --------- Run | Yrd Mat Mat Mat Machines Accessed 5 | . . 4 1 Terminals 4 | . . 3 1 Fabricators . | . . . . Repair Stations . | . . . . Recycling Units 1 | . . 1 . Scanalyzers . | . . . . Garrison Access . | . . . . Total Hacks 10 | . . 9 1 Successful 8 | . . 7 1 Failed 2 | . . 2 . Catastrophic . | . . . . Database Lockouts . | . . . . Manual 1 | . . 1 . Terminals 9 | . . 8 1 Fabricators . | . . . . Repair Stations . | . . . . Recycling Units 1 | . . 1 . Scanalyzers . | . . . . Garrison Access . | . . . . Terminal Hacks 7 | . . 6 1 Record 6 | . . 5 1 Alert Level 1 | . . 1 . Fabricator Hacks . | . . . . Repair Station Hacks . | . . . . Recycling Unit Hacks 1 | . . 1 . Report Inventory 1 | . . 1 . Scanalyzer . | . . . . Garrison Access Hacks . | . . . . Unauthorized Hacks . | . . . . Terminals . | . . . . Fabricators . | . . . . Repair Stations . | . . . . Recycling Units . | . . . . Scanalyzers . | . . . . Garrison Access . | . . . . Data Cores Recovered 1 | . 1 . . Used . | . . . . Hacking Detections 4 | . . 3 1 Full Trace Events 2 | . . 2 . Feedback Events . | . . . . Feedback Blocked . | . . . . Robot Schematics Acquired . | . . . . Robots Built . | . . . . Authchips . | . . . . Time . | . . . . Total Robot Build Rating . | . . . . Part Schematics Acquired . | . . . . Parts Built . | . . . . Authchips . | . . . . Time . | . . . . Total Part Build Rating . | . . . . Parts Repaired . | . . . . Time . | . . . . Parts Recycled . | . . . . Recycled Matter . | . . . . Retrieved Matter . | . . . . Retrieved Components . | . . . . Parts Scanalyzed . | . . . . Part Schematics Acquired . | . . . . Parts Damaged . | . . . . Bothacking | -11 -10 -9 -8 ------------ Run | Yrd Mat Mat Mat Used RIF Installer . | . . . . Robots Hacked 1 | . . . 1 Non-combat . | . . . . Combat 1 | . . . 1 Robot Hacks Applied 1 | . . . 1 parse_system 1 | . . . 1 Relay Couplers Released . | . . . . Fabnet Peak Effective % . | . . . . Robots Rewired . | . . . . Allies Hacked . | . . . . Hacks Repelled . | . . . . Allies | -11 -10 -9 -8 -------- Run | Yrd Mat Mat Mat Total Allies . | . . . . Largest Group . | . . . . Highest-Rated Group . | . . . . Highest-Rated Ally . | . . . . Total Orders . | . . . . Ally Attacks . | . . . . Total Damage . | . . . . Kills . | . . . . Allies Corrupted . | . . . . Allies Melted . | . . . . Intel | -11 -10 -9 -8 ------- Run | Yrd Mat Mat Mat Robot Analysis Total . | . . . . Derelict Logs Recovered . | . . . . Drone Launches . | . . . . Drone Recoveries . | . . . . Exploration | -11 -10 -9 -8 ------------- Run | Yrd Mat Mat Mat Turns Passed 1768 | 56 493 909 310 Spaces Moved 1553 | 40 416 817 280 Core 154 | 5 . . 149 Treads . | . . . . Legs . | . . . . Wheels 1399 | 35 416 817 131 Hover . | . . . . Flight . | . . . . Fastest Speed 50 | 50 100 83 50 Average Speed 86 | 93 100 85 66 Slowest Speed 105 | 100 100 93 105 Overloaded Moves . | . . . . Propulsion Burnouts . | . . . . Robots Hopped . | . . . . Cave-ins Triggered . | . . . . Exploration Rate (%) 40 | 4 68 73 17 Regions Visited 3 Branch Regions . Pre-discovered Areas . | . . . . Known Exits Taken . | . . . . Unknown Exits Taken 3 | 1 1 1 . Scrap Searched . | . . . . Spaces Dug 31 | . 18 13 . Terrain Destroyed 409 | . 92 301 16 Melee . | . . . . Projectile 4 | . . 4 . AOE 405 | . 92 297 16 Terrain Rammed . | . . . . Walls Destroyed . | . . . . Machines Disabled . | . . . . Actions | -11 -10 -9 -8 --------- Run | Yrd Mat Mat Mat Total 1827 | 58 465 939 365 Wait 19 | . 9 2 8 Move 1550 | 39 415 816 280 Hop . | . . . . Pick Up 67 | 12 11 26 18 Fast Attach . | . . . . Attach 40 | 6 3 15 16 Detach . | . . . . Swap 11 | 1 1 6 3 Drop 33 | . 9 18 6 Fire 104 | . 17 55 32 Melee 1 | . . . 1 Ram 2 | . . 1 1 Kick . | . . . . Crush . | . . . . Escape Stasis . | . . . . Rewire . | . . . . Trap . | . . . . Miscellaneous . | . . . . Route ------- -11/Scrapyard -10/Materials (discovered 3 exits: *Mat x2 / [*Min]) -9/Materials (discovered 2 exits: *Mat x2) -8/Materials History --------- Turn | Location | Event 29 | -11/Scrapyard | Discovered new exit (range 16) 57 | -11/Scrapyard | Entered Materials 249 | -10/Materials | Discovered new exit (range 13) 302 | -10/Materials | Build established: Mutant 395 | -10/Materials | Discovered new exit (range 10) 431 | -10/Materials | Discovered new exit (range 14) 550 | -10/Materials | Entered another Materials area 550 | -9/Materials | Evolved 2 slots: Power x1, Propulsion x1 715 | -9/Materials | Destroyed 7 combat bots 1197 | -9/Materials | Discovered new exit (range 15) 1350 | -9/Materials | First assault squad dispatched 1423 | -9/Materials | Build established: Hacker-Mutant 1439 | -9/Materials | Discovered new exit (range 13) 1459 | -9/Materials | Entered another Materials area 1459 | -8/Materials | Evolved 2 slots: Propulsion x1, Utility x1 1597 | -8/Materials | Lost 3 parts (1p1n1w) 1714 | -8/Materials | Lost 12 parts (1p3n2u6w) 1720 | -8/Materials | Core integrity fell below 50% 1746 | -8/Materials | Core integrity fell below 20% 1768 | -8/Materials | System corruption reached 10% 1769 | -8/Materials | Destroyed by H-61 Shepherd with Heavy Assault Cannon Last Messages --------------- System corrupted by crushing effect (+5). Knocked back. K-01 Serf destroyed. 9#:D%7#GWOXDDVLIECN8BF Hacking Suite severed. Acquired Shock Rifle. Shock Rifle severed. Acquired Shock Rifle. Shock Rifle severed. Acquired Shock Rifle. Shock Rifle destroyed. System corrupted: Matter fused (-6). Penetrated by Slug. Acquired VSS Leg. Slug penetrates Wall. Slammed into H-61 Shepherd. Destabilizing: System corrupted (+2). H-61 Shepherd calls for reinforcements. ALERT: Hostile activity reported, dispatching reinforcements to area. Map ----- +----------------------------------------------------+ | #### ## ###/##### "# """ # | | ???## # ## #???# ## """ # | | ????### #???# ## # | | ??????#! T !####???# ########### | | ??????# #?????##% ##????????? | | ??????# #?????# = #????????? | | ???######+####????#%%!!#????????? | | ???# #????# ! #????????? | | ???# #????#=[ #????????? | | ???# """ """ #????##%=##????????? | | ???# """ """ #?????#% #?????????? | | ???# """ "" #?????#" #?????????? | | ??##!%= #?????# #?????????? | | # #????## #?????????? | | #????? #?????????? | | ## ##?????# #?????????? | | #???###### #???????# #?????????? | | ?????????# #???????# #?????????? | | ?????????# #??????## ##????????? | | ????????## #####+## ##+###???? | | ######### / #???? | | # #???? | | # ######## %##H######? | | # #?#######+#"# #? | | """ """ # ### # cc #? | | """ """ / + # @""" #? | | """ """ # ### # """ #? | | ## #?# # %""" #? | | ## ### # #? | | ########## + # """ #? | | ?????????##### # """ #? | | ?????????????# # """ #? | | ?????????????########### #? | | ???????????????????????# #? | | ???????????????????????##;######? | | | | | | | | | | | | | | | | | | | | | | | | | | | | | | | +----------------------------------------------------+ Best States ------------- Heat Dissipation 31 Energy Generation 23 Energy Capacity 450 Matter Stores 286 Matter Capacity 300 Sight Range 16 Terrain Scan Density 85 Evasion (%) 50 Targeting Accuracy 5 Offensive Hacking 30 Item Schematics ----------------- None Robot Schematics ------------------ None Fabricated ------------ Nothing Alien Tech Used ----------------- None Achievements -------------- Loot Pinata Oops Challenges ------------ None Game ------ Seed SystemPulseMultirail Manual? 0 Play Time 00:38:45 Cumulative 2.8 hours Start 2024.04.02 @ 23:27:24 End 2024.04.03 @ 00:05:18 Sessions 1 Manual Loads 0 Difficulty Rogue Special Mode None Game No. 4 Rogue 4 Adventurer 0 Explorer 0 Win Type - Total 0 Types 0/0/0/0/0/0/0/0/0 Lore% 7 Gallery% 7 Achievement% 8 Wizard Run 0 Options --------- Layout 1 ASCII 0 Keyboard 0 Movement Numpad Keybinds 0 Fullscreen 1 Font 24/Smallcaps Map View 50x35 Zoom Use 0% Tactical HUD 0 Map Filters NONE Filters NONE Steam 1 RUN: 04577a17-61c1-4547-b021-1d3822508c2d